bitfinex/quotes_BTCUSD_20251202
["timestamp","ask_amount","ask_price","bid_price","bid_amount"]
[1764644903096,0.01153775,86672.0,86669.0,0.03304]
[1764644903246,0.01153775,86672.0,86668.0,0.02404]
[1764644903247,0.06921014,86670.0,86668.0,0.02404]
[1764644903446,0.00038037,86669.0,86668.0,0.02404]
[1764644903899,0.00038037,86669.0,86668.0,0.10354]
[1764644904057,0.00038037,86669.0,86668.0,0.33630568]
[1764644904393,0.00038037,86669.0,86668.0,0.41955182]
[1764644904786,0.00038037,86669.0,86668.0,0.33430568]
[1764644905992,0.00038037,86669.0,86668.0,0.33730568]
[1764644914097,0.03082414,86688.0,86668.0,0.33730568]
[1764644914098,0.02477053,86689.0,86688.0,0.23071244]
[1764644914268,2.0,86705.0,86702.0,0.01153375]
[1764644914613,2.0,86703.0,86701.0,0.03255]
[1764644914819,2.0,86704.0,86701.0,0.01153389]
[1764644915020,2.323,86704.0,86703.0,0.03255]
[1764644915188,2.0,86704.0,86703.0,0.03155]
[1764644915539,2.323,86704.0,86703.0,0.07986]
[1764644916145,2.323,86704.0,86703.0,0.07786]
[1764644916559,2.324,86704.0,86703.0,0.07786]
[1764644916902,2.324,86704.0,86703.0,0.07986]
[1764644917106,2.323,86704.0,86703.0,0.07986]
[1764644919462,2.323,86704.0,86703.0,0.10271]
[1764644920692,2.0,86704.0,86703.0,0.10271]
[1764644921097,2.0,86704.0,86703.0,0.0544]
[1764644921316,2.0,86704.0,86703.0,0.10271]
[1764644921514,2.0,86704.0,86703.0,0.33338252]
[1764644921744,2.0,86704.0,86703.0,0.10271]
[1764644922933,2.323,86704.0,86703.0,0.10271]
[1764644923852,2.0,86704.0,86703.0,0.10271]
[1764644924828,2.0011089,86704.0,86703.0,0.0544]
[1764644925043,2.0011089,86704.0,86703.0,0.02485]
[1764644926016,2.0011089,86704.0,86703.0,0.02285]
[1764644926511,2.0011089,86704.0,86703.0,0.02485]
[1764644927442,2.0011089,86704.0,86703.0,0.002]
[1764644929685,2.39115792,86704.0,86703.0,0.002]
[1764644931182,2.323,86696.0,86695.0,0.02471]
[1764644932216,2.0,86696.0,86695.0,0.02471]
[1764644932375,2.0,86696.0,86695.0,0.02671]
[1764644933058,2.0,86696.0,86695.0,0.002]
[1764644933227,2.19592412,86696.0,86695.0,0.002]
[1764644933579,2.08069816,86696.0,86695.0,0.002]
[1764644934030,0.01153588,86686.0,86683.0,0.01153628]
[1764644934221,2.0,86685.0,86683.0,0.01153628]
[1764644934426,2.0,86685.0,86683.0,0.04831]
[1764644934627,2.0,86686.0,86684.0,0.03313]
[1764644934934,2.0,86686.0,86685.0,0.08144]
[1764644935367,2.0,86686.0,86685.0,0.03313]
[1764644936378,2.0,86686.0,86685.0,0.03413]
[1764644936612,0.24225285,86687.0,86685.0,0.08244]
[1764644936613,2.0,86687.0,86685.0,0.08244]
[1764644936818,2.0,86688.0,86686.0,0.03313]
[1764644937014,0.01153548,86689.0,86687.0,0.03313]
[1764644937241,2.0,86688.0,86687.0,0.03313]
[1764644938000,2.0,86688.0,86682.0,0.26511317]
[1764644938001,0.2307151,86687.0,86686.0,0.001]
[1764644938193,2.2307151,86687.0,86686.0,0.001]
[1764644938417,0.01153588,86686.0,86682.0,0.03438642]
[1764644938749,0.01153602,86685.0,86682.0,0.08269642]
[1764644938951,0.01148802,86681.0,86680.0,0.02285]
[1764644939143,0.01148802,86681.0,86670.0,0.23075972]
[1764644939144,2.0,86674.0,86668.0,0.04831]
[1764644939563,2.0,86674.0,86673.0,0.05598]
[1764644939773,0.24227041,86680.0,86673.0,0.05598]
[1764644939774,0.33453655,86681.0,86675.0,0.01153735]
[1764644939987,0.56526965,86681.0,86680.0,0.05598]
[1764644940203,0.33453655,86681.0,86680.0,0.05598]
[1764644940389,0.3346522,86681.0,86680.0,0.10429]
[1764644940943,0.3346522,86681.0,86680.0,0.02285]
[1764644941142,2.2422324,86676.0,86675.0,0.02385]
[1764644941356,2.2422324,86676.0,86675.0,0.02285]
[1764644941760,2.23074438,86676.0,86675.0,0.05598]
[1764644942183,2.0,86677.0,86675.0,0.10429]
[1764644942587,2.0,86677.0,86676.0,0.03313]
[1764644942806,0.01153735,86675.0,86665.0,0.24231008]
[1764644942994,0.01153788,86671.0,86668.0,0.02285]
[1764644943176,0.01153788,86671.0,86668.0,0.07116]
[1764644943376,0.01153788,86671.0,86670.0,0.03313]
[1764644943667,2.0,86671.0,86670.0,0.03313]
[1764644943873,2.0,86671.0,86670.0,0.08144]
[1764644944616,2.0,86672.0,86670.0,0.08144]
[1764644944827,2.0,86672.0,86671.0,0.08144]
[1764644946065,2.0,86673.0,86671.0,0.08144]
[1764644946273,2.0,86673.0,86672.0,0.08032]
[1764644946901,2.0,86674.0,86672.0,0.08032]
[1764644947105,2.0,86674.0,86673.0,0.08032]
[1764644947259,2.323,86674.0,86673.0,0.08032]
[1764644948409,2.323,86674.0,86673.0,0.08232]
[1764644949202,2.323,86674.0,86673.0,0.03393]
[1764644950520,2.5537497,86674.0,86673.0,0.08232]
[1764644950723,2.5537497,86674.0,86673.0,0.03393]
[1764644950890,2.5537497,86674.0,86673.0,0.08232]
[1764644953146,2.5537497,86674.0,86673.0,0.03393]
[1764644954485,0.5537497,86674.0,86673.0,0.03393]
[1764644954784,2.5537497,86674.0,86673.0,0.03393]
[1764644955190,2.323,86674.0,86673.0,0.03393]
[1764644955427,2.323,86674.0,86673.0,0.08232]
[1764644955970,2.33448802,86674.0,86673.0,0.08232]
[1764644956150,2.323,86674.0,86673.0,0.08232]
[1764644964164,2.323,86674.0,86673.0,0.03393]
[1764644964658,2.323,86674.0,86673.0,0.08232]
[1764644966202,2.34777789,86674.0,86673.0,0.08232]
[1764644967778,0.34777789,86674.0,86673.0,0.08232]
[1764644968198,0.02477789,86674.0,86673.0,0.17256544]
[1764644968435,0.00025354,86677.0,86673.0,0.17256544]
[1764644968436,0.00025354,86677.0,86676.0,0.23074438]
[1764644968636,0.00025354,86677.0,86676.0,0.26267438]
[1764644968841,0.00025354,86677.0,86676.0,0.31106438]
[1764644969805,0.00025354,86677.0,86676.0,0.31306438]
[1764644972369,0.00025354,86677.0,86676.0,0.33671438]
[1764644975199,0.00025354,86677.0,86676.0,0.42244475]
[1764644975524,0.00025354,86677.0,86676.0,0.33671438]
[1764644978192,0.00025354,86677.0,86676.0,0.10597]
[1764644978395,2.00025354,86677.0,86676.0,0.002]
[1764644978637,2.0250503,86677.0,86676.0,0.002]
[1764644982707,2.3480503,86677.0,86676.0,0.002]
[1764644982907,2.54397442,86677.0,86676.0,0.002]
[1764644983108,2.57867328,86677.0,86676.0,0.002]
[1764644983821,2.57867328,86677.0,86660.0,0.02189]
[1764644983822,2.0,86661.0,86660.0,0.02189]
[1764644984201,2.0,86661.0,86660.0,0.09651]
[1764644985218,2.0,86661.0,86660.0,0.10051]
[1764644985727,2.0,86661.0,86660.0,0.10151]
[1764644987716,1.80950924,86661.0,86660.0,0.10151]
[1764644987944,2.0,86661.0,86660.0,0.10151]
[1764644991443,2.0,86661.0,86660.0,0.05552]
[1764644991649,2.0,86661.0,86660.0,0.10151]
[1764644994168,2.0,86664.0,86660.0,0.11304934]
[1764644994351,2.0,86663.0,86661.0,0.04599]
[1764644994757,2.0,86663.0,86662.0,0.02863]
[1764644995218,2.0,86663.0,86662.0,0.07462]
[1764644996996,2.0,86663.0,86662.0,0.07862]
[1764644997142,2.0,86663.0,86662.0,0.07962]
[1764644998523,2.0,86664.0,86662.0,0.07962]
[1764644998743,0.323,86665.0,86663.0,0.05752894]
[1764644998943,0.323,86669.0,86668.0,0.05052]
[1764644999498,0.323,86669.0,86668.0,0.09651]
[1764645000579,0.323,86669.0,86668.0,0.10051]
[1764645000750,0.323,86670.0,86668.0,0.10051]
[1764645000958,0.323,86670.0,86669.0,0.07462]
[1764645001153,0.01153681,86679.0,86669.0,0.07462]
[1764645001462,0.26182992,86681.0,86676.0,0.28126438]
[1764645001463,0.00025354,86677.0,86676.0,0.28126438]
[1764645001895,0.00025354,86677.0,86676.0,0.32725438]
[1764645002098,0.01153495,86693.0,86676.0,0.32725438]
[1764645002099,0.03469072,86696.0,86695.0,0.23069381]
[1764645002312,0.323,86699.0,86698.0,0.23068582]
[1764645002487,0.04251305,86712.0,86698.0,0.23068582]
[1764645002488,2.0,86709.0,86708.0,0.01153296]
[1764645002860,0.27986111,86716.0,86708.0,0.01153296]
[1764645002861,2.0,86713.0,86711.0,0.05052]
[1764645003113,2.0,86713.0,86711.0,0.02189]
[1764645003316,2.0,86713.0,86712.0,0.07462]
[1764645003488,0.323,86713.0,86712.0,0.07462]
[1764645004040,0.06921014,86714.0,86712.0,0.07462]
[1764645004244,0.06921014,86714.0,86711.0,0.03342256]
[1764645004463,0.06921014,86714.0,86713.0,0.07462]
[1764645005519,0.323,86715.0,86713.0,0.07462]
[1764645005727,0.323,86715.0,86714.0,0.07445]
[1764645005870,0.323,86718.0,86717.0,0.01153176]
[1764645006069,0.323,86718.0,86717.0,0.24216704]
[1764645006070,2.323,86718.0,86717.0,0.24216704]
[1764645006290,2.323,86718.0,86717.0,0.31661704]
[1764645006920,2.323,86718.0,86717.0,0.07545]
[1764645007908,0.01153176,86717.0,86711.0,0.02189]
[1764645008086,0.323,86715.0,86711.0,0.02189]
[1764645008305,0.00110874,86712.0,86711.0,0.06622]
[1764645008691,0.00110874,86712.0,86711.0,0.18181886]
[1764645009536,0.00110874,86712.0,86711.0,0.09734]
[1764645009737,0.00110874,86712.0,86711.0,0.09834]
[1764645013392,0.32410874,86712.0,86711.0,0.02289]
[1764645013884,0.32410874,86712.0,86711.0,0.09834]
[1764645014323,0.00110874,86712.0,86711.0,0.09834]
[1764645016259,0.00110874,86712.0,86711.0,0.18305283]
[1764645018122,0.00110874,86712.0,86711.0,0.09834]
[1764645025828,2.32410874,86712.0,86711.0,0.02289]
[1764645026903,2.32410874,86712.0,86711.0,0.09834]
[1764645027945,2.32410874,86712.0,86711.0,0.32899124]
[1764645031482,2.34889018,86712.0,86711.0,0.05401]
[1764645032602,2.34889018,86712.0,86711.0,0.09914]
[1764645033374,2.57953876,86712.0,86711.0,0.09914]
[1764645033576,2.34889018,86712.0,86711.0,0.09914]
[1764645036731,2.41291344,86712.0,86711.0,0.001]
[1764645036932,2.3603782,86712.0,86711.0,0.001]
[1764645038065,2.0,86705.0,86703.0,0.06442]
[1764645038246,2.09399158,86704.0,86703.0,0.06442]
[1764645038591,2.09399158,86704.0,86703.0,0.02136]
[1764645038786,2.09399158,86704.0,86703.0,0.04879]
[1764645038951,2.09399158,86704.0,86703.0,0.09185]
[1764645039377,2.09399158,86704.0,86703.0,0.09485]
[1764645040846,2.09399158,86704.0,86703.0,0.05279]
[1764645041398,2.09399158,86704.0,86703.0,0.09585]
[1764645042551,2.02478144,86704.0,86703.0,0.09585]
[1764645043502,2.02563684,86704.0,86703.0,0.09585]
[1764645046163,0.0008554,86704.0,86703.0,0.09585]
[1764645053418,0.57000354,86713.0,86711.0,0.27944124]
[1764645053634,2.0,86715.0,86713.0,0.23064557]
[1764645054140,2.0,86715.0,86714.0,0.07049]
[1764645054522,2.0,86717.0,86714.0,0.08202216]
[1764645054766,2.0,86717.0,86715.0,0.04306]
[1764645054968,2.0,86717.0,86716.0,0.02743]
[1764645055372,2.323,86717.0,86716.0,0.02743]
[1764645056332,2.323,86717.0,86716.0,0.07049]
[1764645057475,2.323,86717.0,86716.0,0.07149]
[1764645060764,0.323,86717.0,86716.0,0.07149]
[1764645060975,2.323,86717.0,86716.0,0.07149]
[1764645061189,2.32341173,86717.0,86716.0,0.07149]
[1764645062525,2.32341173,86717.0,86716.0,0.09285]
[1764645063223,2.32108339,86717.0,86716.0,0.09285]
[1764645065046,2.32108339,86717.0,86716.0,0.15501466]
[1764645065047,0.00041173,86717.0,86716.0,0.15501466]
[1764645065344,0.323,86729.0,86725.0,0.23061292]
[1764645065551,2.57040354,86740.0,86739.0,0.0533]
[1764645065744,2.02518037,86740.0,86739.0,0.09638]
[1764645066125,2.3234,86740.0,86739.0,0.09638]
[1764645066325,2.0004,86740.0,86739.0,0.09638]
[1764645066691,2.3234,86740.0,86739.0,0.09638]
[1764645067097,2.3234,86740.0,86739.0,0.09938]
[1764645067797,2.3234,86740.0,86739.0,0.10038]
[1764645069863,2.0004,86740.0,86739.0,0.15011164]
[1764645070062,0.0004,86740.0,86739.0,0.15011164]
[1764645070356,0.0004,86740.0,86739.0,0.10038]
[1764645073639,0.0004,86740.0,86739.0,0.17439819]
[1764645073873,0.0004,86740.0,86739.0,0.17039819]
[1764645074190,0.0004,86740.0,86739.0,0.17139819]
[1764645074378,0.0004,86740.0,86739.0,0.17439819]
[1764645074974,0.0004,86750.0,86749.0,0.30456839]
[1764645075179,0.0004,86760.0,86759.0,0.29304662]
[1764645075379,0.57040354,86780.0,86769.0,0.24199226]
[1764645075575,0.57040354,86780.0,86779.0,0.2304705]
[1764645075778,0.0004,86780.0,86779.0,0.3552176]
[1764645076091,0.0007859,86780.0,86779.0,0.1678271]
[1764645076866,0.0007859,86780.0,86779.0,0.1698271]
[1764645077099,0.0007859,86780.0,86779.0,0.4002976]
[1764645077669,0.0007859,86780.0,86779.0,0.4012976]
[1764645078364,0.0007859,86780.0,86779.0,0.1708271]
[1764645078587,0.0007859,86780.0,86779.0,0.09938]
[1764645079330,0.00277961,86780.0,86779.0,0.09938]
[1764645079622,0.00277961,86780.0,86779.0,0.3298505]
[1764645079855,0.00277961,86780.0,86779.0,0.3413457]
[1764645080354,0.00277961,86780.0,86779.0,0.3298505]
[1764645080543,0.00277961,86780.0,86779.0,0.49315187]
[1764645080736,0.00277961,86780.0,86779.0,0.43062888]
[1764645082866,0.00277961,86780.0,86779.0,0.44212408]
[1764645083592,0.00277961,86780.0,86779.0,0.3595857]
[1764645083849,0.00277961,86780.0,86779.0,0.09938]
[1764645084209,0.23324745,86780.0,86779.0,0.09938]
[1764645084544,0.00277961,86780.0,86779.0,0.09938]
[1764645085027,0.00277961,86780.0,86779.0,0.3298505]
[1764645085197,0.00277961,86780.0,86779.0,0.39231719]
[1764645086159,0.00277961,86780.0,86779.0,0.3298505]
[1764645089573,0.00277961,86780.0,86779.0,0.09938]
[1764645091352,0.00277961,86780.0,86779.0,0.003]
[1764645091353,2.32577961,86780.0,86779.0,0.003]
[1764645091666,2.33726763,86780.0,86779.0,0.003]
[1764645092204,0.01152432,86773.0,86769.0,0.02309]
[1764645092415,2.323,86770.0,86769.0,0.02309]
[1764645092711,2.323,86770.0,86769.0,0.25358706]
[1764645092867,2.323,86770.0,86769.0,0.36221173]
[1764645093067,2.323,86770.0,86769.0,0.17604467]
[1764645093513,0.323,86770.0,86769.0,0.17604467]
[1764645093715,2.323,86770.0,86769.0,0.17604467]
[1764645094751,2.323,86770.0,86769.0,0.17704467]
[1764645094952,2.323,86770.0,86769.0,0.40654173]
[1764645095387,2.323,86770.0,86769.0,0.40754173]
[1764645095602,0.0007859,86780.0,86774.0,0.24200539]
[1764645095816,2.323,86777.0,86776.0,0.01152392]
[1764645096028,0.323,86777.0,86776.0,0.01152392]
[1764645096462,0.323,86777.0,86776.0,0.03971392]
[1764645096639,0.323,86777.0,86776.0,0.08121392]
[1764645097200,0.323,86777.0,86776.0,0.06969]
[1764645098669,0.323,86777.0,86776.0,0.15104467]
[1764645099090,0.0007859,86780.0,86779.0,0.2419657]
[1764645099240,0.0007859,86780.0,86779.0,0.2904757]
[1764645099447,0.00277961,86780.0,86779.0,0.3319757]
[1764645101267,0.00277961,86780.0,86779.0,0.3339757]
[1764645101443,0.00277961,86780.0,86779.0,0.35302213]
[1764645101846,0.00277961,86780.0,86779.0,0.35402213]
[1764645102046,0.00277961,86780.0,86779.0,0.36551733]
[1764645105187,0.00277961,86780.0,86779.0,0.41654512]
[1764645105491,0.00277961,86780.0,86779.0,0.42804032]
[1764645105971,0.18453101,86803.0,86802.0,0.02819]
[1764645106138,2.18464676,86803.0,86802.0,0.08027701]
[1764645106567,2.18464676,86803.0,86802.0,0.12177701]
[1764645106759,2.18464676,86803.0,86802.0,0.06969]
[1764645107493,2.00011575,86803.0,86802.0,0.32041943]
[1764645107945,2.23052253,86803.0,86802.0,0.04851]
[1764645108147,2.00011575,86803.0,86802.0,0.04851]
[1764645108364,2.00011575,86803.0,86802.0,0.09001]
[1764645111487,2.00084316,86803.0,86802.0,0.09001]
[1764645112620,2.00084316,86803.0,86802.0,0.04851]
[1764645112938,2.00084316,86803.0,86802.0,0.02032]
[1764645114403,0.00084316,86803.0,86802.0,0.02032]
[1764645114739,0.23041458,86801.0,86799.0,0.02032]
[1764645114940,2.0,86800.0,86799.0,0.02032]
[1764645115455,2.0,86800.0,86799.0,0.04851]
[1764645115882,2.0,86800.0,86799.0,0.09001]
[1764645116070,2.0,86800.0,86799.0,0.04851]
[1764645117361,2.0,86800.0,86799.0,0.09001]
[1764645117951,2.0,86800.0,86799.0,0.04851]
[1764645118264,2.0,86800.0,86799.0,0.02032]
[1764645120075,2.00063255,86800.0,86799.0,0.02032]
[1764645120439,0.01152126,86796.0,86788.0,0.06182]
[1764645120798,0.00041119,86793.0,86788.0,0.09154233]
[1764645121006,2.00041119,86793.0,86788.0,0.05004233]
[1764645121202,2.00041119,86793.0,86792.0,0.09001]
[1764645121435,2.00041119,86793.0,86792.0,0.02032]
[1764645121639,2.00041119,86793.0,86696.0,0.26862435]
[1764645121640,0.23047316,86778.0,86776.0,0.0415]
[1764645122140,2.0,86780.0,86777.0,0.09001]
[1764645122300,2.0,86780.0,86779.0,0.04851]
[1764645122693,2.0,86780.0,86779.0,0.09001]
[1764645124655,2.0,86780.0,86779.0,0.09101]
[1764645125207,2.0,86780.0,86779.0,0.09201]
[1764645125335,0.23046759,86781.0,86779.0,0.09101]
[1764645125650,2.23046759,86781.0,86780.0,0.07221]
[1764645127280,2.23046759,86781.0,86780.0,0.07321]
[1764645127486,2.23046759,86781.0,86780.0,0.07421]
[1764645130713,2.0,86781.0,86780.0,0.07421]
[1764645131269,2.0,86782.0,86780.0,0.15944901]
[1764645131435,2.2304637,86782.0,86781.0,0.07221]
[1764645131642,2.2304637,86782.0,86780.0,0.002]
[1764645131643,2.323,86781.0,86780.0,0.002]
[1764645131847,2.35926567,86781.0,86780.0,0.002]
[1764645132045,2.35926567,86781.0,86754.0,0.02148]
[1764645132046,2.23053426,86755.0,86754.0,0.02148]
[1764645132411,2.23053426,86755.0,86754.0,0.09369]
[1764645133053,2.0,86755.0,86754.0,0.09369]
[1764645133205,2.00011566,86755.0,86754.0,0.09369]
[1764645133410,2.00011566,86755.0,86754.0,0.09569]
[1764645133611,2.00011566,86755.0,86754.0,0.09469]
[1764645134055,2.00011566,86755.0,86754.0,0.09569]
[1764645134249,2.00011566,86755.0,86754.0,0.09469]
[1764645134628,2.00011566,86755.0,86754.0,0.09369]
[1764645134829,2.00011566,86755.0,86754.0,0.15888577]
[1764645135163,2.00011566,86755.0,86754.0,0.15988577]
[1764645135595,2.00011566,86755.0,86754.0,0.16088577]
[1764645136032,0.00011566,86755.0,86754.0,0.16088577]
[1764645146154,2.01160368,86755.0,86754.0,0.002]
[1764645146601,2.00011566,86755.0,86754.0,0.002]
[1764645147023,2.00011566,86755.0,86754.0,0.02919]
[1764645147249,2.00011566,86755.0,86754.0,0.07321]
[1764645148222,2.00011566,86755.0,86754.0,0.07221]
[1764645148428,0.24206376,86754.0,86751.0,0.00140261]
[1764645148627,2.0,86752.0,86751.0,0.00140261]
[1764645149935,2.0,86752.0,86751.0,0.02959261]
[1764645150355,2.0,86752.0,86751.0,0.07361261]
[1764645150761,1.85587334,86752.0,86751.0,0.07361261]
[1764645151557,1.85587334,86752.0,86751.0,0.11408988]
[1764645153445,1.85587334,86753.0,86751.0,0.11408988]
[1764645153650,1.85587334,86753.0,86752.0,0.06515]
[1764645156125,1.85587334,86754.0,86752.0,0.06515]
[1764645156459,1.85587334,86754.0,86753.0,0.07344]
[1764645157045,1.85587334,86754.0,86753.0,0.30397957]
[1764645157248,0.00011566,86755.0,86753.0,0.36548494]
[1764645157449,0.00011566,86755.0,86754.0,0.07344]
[1764645170103,2.00011566,86755.0,86754.0,0.07344]
[1764645170672,0.00011566,86755.0,86754.0,0.07344]
[1764645170983,0.00011566,86755.0,86754.0,0.13561602]
[1764645174226,0.23052602,86759.0,86754.0,0.14714286]
[1764645174545,0.01152631,86758.0,86757.0,0.02898]
[1764645174671,0.01152631,86758.0,86755.0,0.07756671]
[1764645174872,0.01152631,86758.0,86757.0,0.02898]
[1764645175992,0.01152631,86758.0,86757.0,0.12316028]
[1764645176215,2.0,86758.0,86757.0,0.12316028]
[1764645176606,2.0,86758.0,86757.0,0.07344]
[1764645179128,2.0,86758.0,86757.0,0.02898]
[1764645179691,2.0,86758.0,86757.0,0.07344]
[1764645180141,2.0,86759.0,86757.0,0.07344]
[1764645180350,2.01152591,86761.0,86758.0,0.07344]
[1764645180548,2.0,86760.0,86759.0,0.06241656]
[1764645180751,2.23052097,86760.0,86759.0,0.10687656]
[1764645180951,2.23052097,86760.0,86759.0,0.07344]
[1764645181160,0.24205538,86757.0,86754.0,0.0003859]
[1764645181316,2.56921014,86755.0,86754.0,0.0003859]
[1764645181525,2.06921014,86755.0,86754.0,0.0003859]
[1764645182010,2.06921014,86755.0,86754.0,0.0738259]
[1764645182631,2.06921014,86755.0,86754.0,0.0293659]
[1764645183418,2.06908335,86755.0,86754.0,0.04019953]
[1764645185781,0.06908335,86755.0,86754.0,0.04019953]
[1764645186024,2.56908335,86755.0,86754.0,0.04019953]
[1764645186219,2.09391693,86755.0,86754.0,0.04019953]
[1764645187788,2.09391693,86755.0,86754.0,0.01121953]
[1764645188011,2.09391693,86755.0,86754.0,0.0003859]
[1764645188397,2.06908335,86755.0,86754.0,0.0003859]
[1764645188835,2.0,86755.0,86754.0,0.0761359]
[1764645192159,2.0,86756.0,86754.0,0.0761359]
[1764645192415,2.0,86756.0,86755.0,0.11172281]
[1764645192796,2.0,86756.0,86755.0,0.0972]
[1764645195675,2.01152604,86760.0,86755.0,0.10872671]
[1764645195898,2.0,86759.0,86756.0,0.05710658]
[1764645196099,2.0,86759.0,86756.0,0.28763789]
[1764645196296,2.0,86759.0,86758.0,0.03017]
[1764645196964,0.01152604,86760.0,86758.0,0.07575]
[1764645197133,2.01152604,86760.0,86759.0,0.03017]
[1764645197310,1.84032867,86760.0,86759.0,0.07575]
[1764645197896,1.85185471,86760.0,86759.0,0.07575]
[1764645198827,1.84032867,86760.0,86759.0,0.07575]
[1764645199551,1.66751277,86760.0,86759.0,0.07575]
[1764645199844,1.66751277,86760.0,86759.0,0.13622537]
[1764645202722,1.66751277,86760.0,86759.0,0.07575]
[1764645209557,1.69236858,86760.0,86759.0,0.07575]
[1764645210502,0.02485581,86760.0,86759.0,0.07575]
[1764645210692,2.0,86760.0,86759.0,0.07575]
[1764645210848,2.02485581,86760.0,86759.0,0.07575]
[1764645213837,1.79895761,86760.0,86759.0,0.07575]
[1764645214061,0.01152565,86763.0,86759.0,0.13507339]
[1764645214062,1.81048339,86762.0,86759.0,0.13507339]
[1764645214237,1.79895761,86761.0,86760.0,0.06963]
[1764645215000,1.79895761,86761.0,86760.0,0.09959]
[1764645217060,1.79895761,86761.0,86760.0,0.16838174]
[1764645217663,1.79895761,86761.0,86760.0,0.09959]
[1764645220755,1.79895761,86761.0,86760.0,0.02297]
[1764645222138,1.79895761,86761.0,86760.0,0.05367]
[1764645222636,1.82382649,86761.0,86760.0,0.05367]
[1764645223591,1.82382649,86761.0,86760.0,0.09989]
[1764645226179,1.67735645,86761.0,86760.0,0.16278011]
[1764645229589,1.67735645,86761.0,86760.0,0.09989]
[1764645229809,1.4692823,86761.0,86760.0,0.09989]
[1764645230178,1.4692823,86762.0,86760.0,0.09989]
[1764645230383,1.4692823,86761.0,86760.0,0.02297]
[1764645231024,1.4692823,86761.0,86760.0,0.09989]
[1764645232241,1.4692823,86761.0,86760.0,0.14087888]
[1764645232882,1.4692823,86761.0,86760.0,0.09989]
[1764645234979,2.0,86771.0,86770.0,0.23049441]
[1764645235152,0.04258479,86778.0,86771.0,0.05436]
[1764645235153,2.0,86776.0,86771.0,0.05436]
[1764645235353,2.0,86774.0,86772.0,0.01152445]
[1764645235528,2.0,86777.0,86776.0,0.05436]
[1764645235912,2.0,86777.0,86776.0,0.10058]
[1764645237917,2.0,86778.0,86776.0,0.10058]
[1764645238074,2.0,86778.0,86777.0,0.04622]
[1764645238274,2.0,86778.0,86777.0,0.07692]
[1764645239408,2.0,86779.0,86777.0,0.07692]
[1764645239567,0.25602339,86780.0,86779.0,0.0307]
[1764645239568,0.2445,86780.0,86779.0,0.0307]
[1764645239768,2.2445,86780.0,86779.0,0.0307]
[1764645239988,2.2445,86780.0,86779.0,0.07692]
[1764645240233,2.2445,86780.0,86779.0,0.12453352]
[1764645240568,2.0,86780.0,86779.0,0.12453352]
[1764645240793,2.0,86781.0,86779.0,0.07692]
[1764645240994,2.0,86782.0,86780.0,0.04622]
[1764645241201,2.0,86782.0,86781.0,0.05436]
[1764645241660,2.0,86782.0,86781.0,0.10058]
[1764645241864,2.0,86783.0,86781.0,0.10058]
[1764645242064,2.0,86783.0,86782.0,0.04622]
[1764645242242,2.0,86783.0,86782.0,0.07692]
[1764645242461,2.00011099,86783.0,86782.0,0.07692]
[1764645243371,0.23046253,86782.0,86781.0,0.02366]
[1764645243570,2.23046253,86782.0,86781.0,0.02366]
[1764645243752,2.0,86782.0,86781.0,0.05436]
[1764645244335,2.0,86782.0,86781.0,0.10058]
[1764645245833,2.0,86782.0,86781.0,0.05436]
[1764645246137,2.0,86771.0,86769.0,0.02366]
[1764645246689,2.0,86771.0,86769.0,0.07455]
[1764645247087,2.0,86771.0,86770.0,0.03371]
[1764645247287,2.0,86771.0,86770.0,0.0846]
[1764645248259,2.0,86771.0,86770.0,0.03371]
[1764645248559,0.24204123,86763.0,86761.0,0.02439]
[1764645248800,0.23051832,86761.0,86760.0,0.02439]
[1764645249005,2.0,86762.0,86761.0,0.02439]
[1764645249383,2.01152538,86765.0,86761.0,0.10899]
[1764645249553,2.0,86763.0,86762.0,0.03371]
[1764645249762,2.0,86764.0,86762.0,0.0846]
[1764645250127,2.0,86764.0,86763.0,0.03371]
[1764645250243,2.0,86764.0,86763.0,0.0846]
[1764645255482,0.2445,86781.0,86768.0,0.01152498]
[1764645255483,2.0,86772.0,86768.0,0.01152498]
[1764645255643,0.01152432,86773.0,86767.0,0.01152511]
[1764645255644,2.0,86770.0,86767.0,0.01152511]
[1764645255843,2.0,86770.0,86768.0,0.05089]
[1764645256062,2.0,86770.0,86769.0,0.0581]
[1764645256471,2.0,86770.0,86769.0,0.10899]
[1764645257695,2.0,86770.0,86769.0,0.10999]
[1764645260250,0.31122844,86771.0,86769.0,0.10999]
[1764645260472,2.0,86770.0,86769.0,0.02539]
[1764645261403,2.0,86770.0,86769.0,0.0591]
[1764645261607,2.0,86770.0,86769.0,0.10999]
[1764645271250,2.23049398,86771.0,86769.0,0.10999]
[1764645271406,2.23049398,86771.0,86769.0,0.02539]
[1764645271407,2.0,86770.0,86769.0,0.02539]
[1764645271836,2.0,86770.0,86769.0,0.05587]
[1764645272182,2.0,86770.0,86769.0,0.10573]
[1764645273927,2.0,86770.0,86769.0,0.02539]
[1764645275028,2.0,86770.0,86769.0,0.05587]
[1764645276094,2.0,86770.0,86769.0,0.106]
[1764645277101,0.23049398,86771.0,86769.0,0.106]
[1764645277459,2.0,86770.0,86769.0,0.106]
[1764645277783,2.0,86770.0,86769.0,0.105]
[1764645280134,2.0,86770.0,86769.0,0.106]
[1764645283304,2.024892,86770.0,86769.0,0.106]
[1764645285226,1.85212122,86770.0,86769.0,0.106]
[1764645285689,1.85212122,86770.0,86769.0,0.1708437]
[1764645286852,1.85212122,86779.0,86776.0,0.01152392]
[1764645287074,1.87702411,86778.0,86777.0,0.24199773]
[1764645287255,1.87702411,86778.0,86777.0,0.33918033]
[1764645287479,1.87702411,86778.0,86777.0,0.37148033]
[1764645287735,1.87702411,86778.0,86777.0,0.32442773]
[1764645287955,1.85212122,86778.0,86777.0,0.32442773]
[1764645288137,1.85212122,86781.0,86778.0,0.01152365]
[1764645288298,1.85212122,86779.0,86778.0,0.06065365]